bitfinex-derivatives/quotes_ETHF0:USTF0_20210109
["timestamp","ask_amount","ask_price","bid_price","bid_amount"]
[1610214054485,1.71957977,1219.2,1218.9,50.0]
[1610214054689,4.00959,1219.0,1218.9,50.0]
[1610214054887,4.00959,1219.0,1218.8,50.0]
[1610214055085,4.00959,1219.0,1218.8,59.6646]
[1610214055285,4.00959,1219.0,1218.9,50.0]
[1610214056787,4.00959,1219.0,1218.9,54.00959]
[1610214060290,4.00959,1219.0,1218.9,50.0]
[1610214071002,104.409527,1219.5,1218.9,50.0]
[1610214071401,104.409527,1219.5,1219.0,50.0]
[1610214071602,17.0,1219.5,1219.0,50.0]
[1610214071802,17.0,1219.5,1219.1,53.6275]
[1610214072204,17.0,1219.5,1219.2,50.0]
[1610214072404,17.0,1219.5,1219.3,50.0]
[1610214072602,17.0,1219.5,1219.3,58.1418]
[1610214072803,5.71857229,1219.4,1219.3,8.1418]
[1610214073204,5.71857229,1219.4,1219.3,58.1418]
[1610214080013,5.71857229,1219.4,1219.3,50.0]
[1610214080413,1.70898229,1219.4,1219.3,50.0]
[1610214080815,1.70898229,1219.4,1219.3,54.00959]
[1610214081618,17.0,1219.5,1219.4,51.9874]
[1610214081818,17.0,1219.5,1219.4,50.0]
[1610214091931,17.0,1219.5,1219.4,101.5153]
[1610214092828,21.00959,1219.5,1219.4,50.0]
[1610214101042,21.00959,1219.5,1219.4,54.00959]
[1610214102342,17.0,1219.5,1219.4,54.00959]
[1610214105945,17.0,1219.5,1219.4,50.0]
[1610214106948,21.00959,1219.5,1219.4,50.0]
[1610214108949,22.71778196,1219.5,1219.4,50.0]
[1610214117960,21.00959,1219.5,1219.4,50.0]
[1610214121361,17.0,1219.5,1219.4,50.0]
[1610214122960,17.0,1219.5,1219.4,54.00959]
[1610214124563,17.0,1219.5,1219.4,103.58189]
[1610214133567,17.0,1219.5,1219.4,99.5723]
[1610214138572,18.71588169,1219.5,1219.4,99.5723]
[1610214143777,18.71588169,1219.5,1219.4,50.0]
[1610214150382,18.71588169,1219.5,1219.4,109.8069]
[1610214155784,18.71588169,1219.5,1219.4,59.8069]
[1610214156084,18.71588169,1219.5,1219.3,50.0]
[1610214156286,18.71588169,1219.5,1219.4,50.0]
[1610214156684,18.71588169,1219.5,1219.2,50.0]
[1610214156884,26.35998169,1219.5,1219.2,50.0]
[1610214157186,4.00959,1219.3,1219.1,50.0]
[1610214157388,4.00959,1219.3,1219.2,50.0]
[1610214157788,4.00959,1219.3,1218.9,47.8264]
[1610214158188,4.00959,1219.3,1219.0,50.0]
[1610214158392,1.71671614,1219.2,1219.0,50.0]
[1610214158592,1.71671614,1219.2,1219.1,50.0]
[1610214158996,1.71671614,1219.2,1219.0,50.0]
[1610214159195,4.00959,1219.1,1219.0,50.0]
[1610214159395,4.00959,1219.1,1218.9,47.8264]
[1610214159594,5.93239,1219.1,1218.9,47.8264]
[1610214159793,5.93239,1219.1,1219.0,50.0]
[1610214160895,1.9228,1219.1,1219.0,50.0]
[1610214161396,5.93239,1219.1,1219.0,50.0]
[1610214165200,4.00959,1219.1,1219.0,50.0]
[1610214165600,4.00959,1219.1,1219.0,97.8264]
[1610214166700,1.9104,1219.4,1219.0,97.8264]
[1610214166901,17.0,1219.5,1219.1,50.0]
[1610214167301,17.0,1219.5,1219.2,50.0]
[1610214167502,4.00959,1219.3,1219.2,50.0]
[1610214167701,4.00959,1219.3,1219.1,4.00959]
[1610214168101,4.00959,1219.3,1219.2,50.0]
[1610214177011,4.00959,1219.3,1219.2,110.8194]
[1610214182625,4.00959,1219.3,1219.2,50.0]
[1610214185128,4.00959,1219.3,1219.0,65.0556]
[1610214185527,4.00959,1219.1,1219.0,65.0556]
[1610214187128,4.00959,1219.1,1219.0,115.0556]
[1610214188231,4.00959,1219.1,1219.0,50.0]
[1610214188430,4.00959,1219.1,1218.9,50.0]
[1610214188831,5.63069,1219.1,1218.8,50.0]
[1610214189232,35.63069,1219.1,1218.2,46.1145]
[1610214189431,35.63069,1219.1,1218.4,50.0]
[1610214189631,4.00959,1218.5,1218.4,50.0]
[1610214189831,13.56689,1218.5,1218.4,50.0]
[1610214190031,4.00959,1218.5,1218.4,50.0]
[1610214192736,4.00959,1218.5,1218.3,50.0]
[1610214193136,4.00959,1218.5,1218.1,50.0]
[1610214193338,4.00959,1218.5,1218.0,68.0566]
[1610214193835,4.00959,1218.1,1218.0,50.0]
[1610214194337,6.15319,1218.1,1218.0,50.0]
[1610214197040,4.00959,1218.1,1218.0,50.0]
[1610214199742,4.00959,1218.1,1217.9,50.0]
[1610214200045,4.00959,1218.1,1217.7,50.0]
[1610214200444,4.00959,1218.1,1217.8,50.0]
[1610214200747,4.00959,1218.1,1217.9,50.0]
[1610214201148,4.00959,1218.1,1217.7,50.0]
[1610214201546,4.00959,1218.1,1218.0,50.0]
[1610214201946,4.00959,1218.1,1217.7,50.0]
[1610214202347,4.00959,1218.1,1217.8,50.0]
[1610214202549,4.00959,1218.1,1217.7,50.0]
[1610214202948,4.00959,1218.1,1217.9,50.0]
[1610214203348,4.00959,1218.1,1218.0,50.0]
[1610214204850,2.3994,1218.4,1218.0,50.0]
[1610214205151,2.3994,1218.4,1218.1,50.0]
[1610214205350,52.1784,1218.7,1218.1,50.0]
[1610214205552,52.1784,1218.7,1218.0,50.0]
[1610214205751,4.00959,1218.1,1217.9,70.71979]
[1610214206351,4.00959,1218.1,1218.0,50.0]
[1610214206552,2.4164,1218.7,1218.0,50.0]
[1610214206753,2.4164,1218.7,1218.2,59.3475]
[1610214206955,89.0584334,1219.1,1218.2,59.3475]
[1610214207157,1.6211,1219.1,1218.2,59.3475]
[1610214207356,93.85943701,1219.2,1218.3,50.0]
[1610214207757,4.00959,1218.4,1218.2,63.35709]
[1610214207956,87.42953701,1219.2,1218.2,63.35709]
[1610214208158,1.9533,1219.1,1218.3,50.0]
[1610214208357,1.9533,1219.1,1218.6,52.45]
[1610214208958,1.9533,1219.1,1218.7,50.0]
[1610214209358,1.9533,1219.1,1218.9,7.7796]
[1610214209659,4.00959,1219.0,1218.9,7.7796]
[1610214210261,4.00959,1219.0,1218.9,57.7796]
[1610214213863,19.3561,1219.5,1218.9,57.7796]
[1610214214064,19.3561,1219.5,1218.9,50.0]
[1610214214263,19.3561,1219.5,1219.0,50.0]
[1610214214465,19.3561,1219.5,1219.1,59.2236]
[1610214215066,19.3561,1219.5,1219.2,50.0]
[1610214215267,19.3561,1219.5,1219.3,50.0]
[1610214215466,19.3561,1219.5,1219.4,9.4963]
[1610214215668,17.0,1219.5,1219.4,9.4963]
[1610214215866,21.00959,1219.5,1219.4,9.4963]
[1610214216066,21.00959,1219.5,1219.4,59.4963]
[1610214229485,22.72485492,1219.5,1219.4,59.4963]
[1610214229984,22.72485492,1219.5,1219.4,50.0]
[1610214230384,18.71526492,1219.5,1219.4,50.0]
[1610214230884,17.0,1219.5,1219.4,50.0]
[1610214231883,17.0,1219.5,1219.4,54.00959]
[1610214249701,16.9914351,1219.5,1219.4,54.00959]
[1610214250101,16.9914351,1219.5,1219.4,55.2631456]
[1610214254405,16.9914351,1219.5,1219.4,56.9869456]
[1610214262715,5.6590351,1219.5,1219.4,56.9869456]
[1610214262916,5.6590351,1219.5,1219.4,57.47816508]
[1610214263114,5.6590351,1219.5,1219.4,87.47816508]
[1610214263315,2.5148,1221.5,1220.6,58.6945]
[1610214263515,2.5148,1221.5,1220.6,60.6914]
[1610214263718,2.4849,1221.8,1220.6,60.6914]
[1610214264115,2.4849,1221.8,1221.7,4.00959]
[1610214264516,2.4849,1221.8,1221.7,54.00959]
[1610214264719,2.4849,1221.8,1221.7,50.0]
[1610214265518,87.22139666,1222.6,1221.7,50.0]
[1610214265718,87.22211524,1222.7,1222.3,59.0615]
[1610214265920,87.22211524,1222.7,1221.8,50.0]
[1610214266118,89.77631524,1222.7,1222.6,4.00959]
[1610214266321,2.5542,1222.7,1222.6,4.00959]
[1610214266719,2.5542,1222.7,1222.6,54.00959]
[1610214268121,6.56379,1222.7,1222.6,54.00959]
[1610214268322,2.5542,1222.7,1222.6,54.00959]
[1610214269523,2.5542,1222.7,1222.6,60.76029]
[1610214270122,2.5542,1222.7,1222.6,54.00959]
[1610214270322,2.5542,1222.7,1222.6,105.81359]
[1610214271224,91.18586627,1223.0,1222.6,105.81359]
[1610214271425,91.18586627,1223.0,1222.7,50.0]
[1610214271823,91.18586627,1223.0,1222.8,50.0]
[1610214272125,91.18586627,1223.0,1222.8,4.00959]
[1610214272524,91.18586627,1223.0,1222.9,50.0]
[1610214273124,87.17627627,1223.0,1222.9,50.0]
[1610214273325,87.17388434,1223.1,1222.9,50.0]
[1610214273724,87.16839145,1223.2,1223.1,57.5048]
[1610214273924,87.16839145,1223.2,1223.0,50.0]
[1610214274125,87.16839145,1223.2,1221.9,2.0744]
[1610214274126,91.16753627,1223.4,1223.2,49.3397]
[1610214274525,4.00959,1223.4,1223.2,49.3397]
[1610214274724,4.00959,1223.4,1223.3,50.0]
[1610214275726,91.15900256,1223.4,1223.3,50.0]
[1610214276627,87.14941256,1223.4,1223.3,50.0]
[1610214276826,87.14598216,1223.5,1223.3,50.0]
[1610214277231,87.14598216,1223.5,1223.4,50.0]
[1610214278227,91.15557216,1223.5,1223.4,54.00959]
[1610214278731,91.15557216,1223.5,1223.4,50.0]
[1610214279132,91.15557216,1223.5,1223.3,50.0]
[1610214279331,91.15557216,1223.5,1223.0,50.0]
[1610214279332,9.15988317,1223.5,1223.0,50.0]
[1610214279631,3.00297052,1223.4,1223.0,50.0]
[1610214280032,87.15880312,1223.2,1223.0,50.0]
[1610214280231,4.00959,1223.1,1223.0,50.0]
[1610214280830,4.00959,1223.1,1222.8,4.00959]
[1610214281231,4.00959,1223.1,1222.8,54.00959]
[1610214281531,4.00959,1223.1,1222.8,4.00959]
[1610214281733,4.00959,1223.1,1222.9,50.0]
[1610214281933,4.00959,1223.1,1223.0,50.0]
[1610214282132,4.00959,1223.1,1223.0,54.00959]
[1610214282332,88.76780312,1223.2,1223.0,4.00959]
[1610214282532,88.76780312,1223.2,1223.1,50.0]
[1610214283734,1.609,1223.2,1223.1,50.0]
[1610214285335,4.00959,1223.3,1223.1,50.0]
[1610214285734,4.00959,1223.3,1223.2,50.0]
[1610214286134,4.00959,1223.3,1223.2,54.00959]
[1610214286438,4.00959,1223.3,1223.2,4.00959]
[1610214286839,91.16378488,1223.3,1223.2,50.0]
[1610214287240,91.16378488,1223.3,1222.2,2.4225]
[1610214287241,4.00959,1223.3,1223.0,50.0]
[1610214287441,7.01288458,1223.3,1223.0,50.0]
[1610214287843,87.16696973,1223.1,1222.8,50.0]
[1610214288042,89.63936973,1223.1,1222.8,50.0]
[1610214288242,4.00959,1222.9,1222.6,54.00959]
[1610214288441,89.63936973,1223.1,1222.9,50.0]
[1610214288842,2.4724,1223.1,1223.0,50.0]
[1610214293049,4.00959,1223.2,1223.0,50.0]
[1610214293448,4.00959,1223.2,1223.1,50.0]
[1610214293848,4.00959,1223.2,1223.0,50.0]
[1610214294048,5.88509,1223.2,1223.0,50.0]
[1610214294250,5.88509,1223.2,1223.1,54.00959]
[1610214294647,5.88509,1223.2,1223.0,50.0]
[1610214295048,5.88509,1223.2,1222.9,50.0]
[1610214295449,93.04705961,1223.2,1223.1,50.0]
[1610214295852,93.04705961,1223.2,1222.9,50.0]
[1610214296250,4.00959,1223.0,1222.9,50.0]
[1610214296450,4.00959,1223.0,1222.6,4.00959]
[1610214296850,91.18418436,1223.0,1222.9,50.0]
[1610214297257,87.17906193,1222.9,1222.5,53.7648]
[1610214297454,89.48716193,1222.9,1222.6,50.0]
[1610214297653,87.18335876,1222.8,1222.6,50.0]
[1610214297954,87.18335876,1222.8,1222.7,50.0]
[1610214298153,91.19294876,1222.8,1222.7,50.0]
[1610214298454,4.00959,1222.8,1222.6,50.0]
[1610214298654,4.00959,1222.8,1222.7,50.0]
[1610214299156,4.00959,1222.8,1222.6,50.0]
[1610214299556,4.00959,1222.8,1222.7,50.0]
[1610214299961,4.00959,1222.8,1222.6,50.0]
[1610214300256,4.00959,1222.8,1222.7,50.0]
[1610214300257,91.18982669,1222.8,1222.7,50.0]
[1610214300559,91.18982669,1222.8,1222.6,50.0]
[1610214300958,91.18982669,1222.8,1222.5,53.7648]
[1610214301158,91.18982669,1222.8,1222.7,50.0]
[1610214301359,4.00959,1222.8,1222.6,50.0]
[1610214301559,91.1930537,1222.8,1222.6,50.0]
[1610214301959,87.18827904,1222.7,1222.6,50.0]
[1610214302158,87.18827904,1222.7,1221.8,4.00959]
[1610214302359,16.02392422,1222.7,1221.8,4.00959]
[1610214302560,16.02392422,1222.7,1221.9,50.0]
[1610214302760,87.20422796,1222.5,1221.9,50.0]
[1610214302961,87.20805592,1222.4,1221.9,50.0]
[1610214303159,87.20805592,1222.4,1221.6,64.1299]
[1610214303361,87.20805592,1222.4,1221.9,50.0]
[1610214303761,87.21873929,1222.3,1221.8,50.0]
[1610214303961,87.21873929,1222.3,1221.6,64.1299]
[1610214304161,87.21873929,1222.3,1221.9,50.0]
[1610214304362,87.21885382,1222.2,1221.7,50.0]
[1610214304560,88.87983435,1222.2,1221.6,64.1299]
[1610214304761,90.65963435,1222.2,1222.0,50.0]
[1610214305164,90.65963435,1222.2,1221.6,64.1299]
[1610214305362,90.65963435,1222.2,1221.9,50.0]
[1610214305763,90.65963435,1222.2,1221.6,64.1299]
[1610214306162,88.99865382,1222.2,1222.0,50.0]
[1610214306665,88.99865382,1222.2,1221.6,64.1299]
[1610214307065,88.99865382,1222.2,1221.7,50.0]
[1610214307264,87.22806611,1222.1,1221.7,50.0]
[1610214307464,87.23212405,1222.0,1221.7,50.0]
[1610214308266,4.00959,1221.8,1221.7,50.0]
[1610214308467,5.67059,1221.8,1221.6,114.1299]
[1610214308869,5.67059,1221.8,1221.3,50.0]
[1610214309269,5.67059,1221.8,1221.4,50.0]
[1610214309568,5.67059,1221.8,1221.3,50.0]
[1610214309972,92.91268829,1221.8,1221.4,50.0]
[1610214310173,4.00959,1221.5,1221.4,50.0]
[1610214310372,4.00959,1221.5,1221.3,50.0]
[1610214310570,5.67799,1221.5,1221.4,50.0]
[1610214311373,5.67799,1221.5,1221.2,50.0]
[1610214311573,5.67799,1221.5,1221.4,50.0]
[1610214318385,5.67799,1221.5,1221.4,54.00959]
[1610214319285,1.6684,1221.5,1221.4,54.00959]
[1610214319486,1.6684,1221.5,1221.4,60.75719]
[1610214319685,1.661,1221.8,1221.4,60.75719]
[1610214319886,89.0127222,1222.2,1221.4,54.00959]
[1610214320085,1.7798,1222.2,1221.5,66.9843]
[1610214320286,4.00959,1222.2,1221.9,4.00959]
[1610214321688,1.7195,1222.5,1221.9,4.00959]
[1610214321888,87.20565446,1222.6,1221.9,4.00959]
[1610214322288,4.00959,1222.5,1222.2,4.00959]
[1610214322488,1.9454,1222.5,1222.3,52.9247]
[1610214322890,3.60504675,1222.5,1222.3,52.9247]
[1610214323892,3.60504675,1222.5,1222.4,50.0]
[1610214324292,1.9454,1222.5,1222.4,54.00959]
[1610214324593,4.00959,1223.0,1222.4,54.00959]
[1610214324793,4.00959,1223.0,1222.5,50.0]
[1610214325194,4.00959,1223.0,1222.6,50.0]
[1610214325596,4.00959,1223.0,1222.5,50.0]
[1610214326095,1.9354,1223.0,1222.5,50.0]
[1610214326496,1.9354,1223.0,1222.9,4.00959]
[1610214326896,1.9354,1223.0,1222.5,50.0]
[1610214327298,1.9354,1223.0,1222.7,50.0]
[1610214327702,1.9354,1223.0,1222.8,50.0]
[1610214328002,1.9354,1223.0,1222.4,50.0]
[1610214328402,4.00959,1222.7,1222.6,4.00959]
[1610214328602,12.99041,1222.5,1222.3,52.9247]
[1610214329003,12.99041,1222.5,1221.9,2.306]
[1610214329202,12.99041,1222.5,1221.9,68.5051]
[1610214329403,12.99041,1222.5,1222.4,50.0]
[1610214332505,17.0,1222.5,1222.4,50.0]
[1610214335705,17.0,1222.5,1222.4,100.0059]
[1610214336509,17.0,1222.5,1222.4,104.01549]
[1610214340711,17.0,1222.5,1222.4,50.0]
[1610214341114,17.0,1222.5,1222.3,50.0]
[1610214341712,17.0,1222.5,1222.0,50.0]
[1610214342114,104.20381009,1222.5,1222.2,50.0]
[1610214342414,4.00959,1222.3,1221.9,63.9929]
[1610214342614,35.64039,1222.3,1222.0,50.0]
[1610214343013,35.64039,1222.3,1221.2,51.0524]
[1610214343014,179.18881075,1222.3,1221.2,51.0524]
[1610214343212,179.18881075,1222.3,1221.4,50.0]
[1610214343414,87.22750229,1222.2,1221.4,50.0]
[1610214343815,87.23067216,1222.1,1221.2,51.0524]
[1610214344015,117.23067216,1222.1,1221.2,51.0524]
[1610214344214,117.23067216,1222.1,1221.4,50.0]
[1610214344414,4.00959,1221.5,1221.4,50.0]
[1610214344614,5.98329,1221.5,1221.4,50.0]
[1610214344814,5.98329,1221.5,1221.3,50.0]
[1610214345015,5.98329,1221.5,1221.2,101.0524]
[1610214345416,5.98329,1221.5,1221.4,50.0]
[1610214345815,5.98329,1221.5,1221.3,50.0]
[1610214346216,5.98329,1221.5,1221.4,50.0]
[1610214346516,5.98329,1221.5,1221.3,50.0]
[1610214346915,5.98329,1221.5,1221.4,50.0]
[1610214347217,5.98329,1221.5,1221.3,50.0]
[1610214347518,5.98329,1221.5,1221.4,50.0]
[1610214347921,5.98329,1221.5,1221.3,50.0]
[1610214348220,5.98329,1221.5,1221.4,50.0]
[1610214349422,5.98329,1221.5,1221.4,115.8011]
[1610214350624,5.98329,1221.5,1221.4,54.00959]
[1610214352325,5.98329,1221.5,1221.4,50.0]
[1610214353832,5.98329,1221.5,1221.3,50.0]
[1610214354132,5.98329,1221.5,1221.2,50.0]
[1610214354533,4.00959,1221.3,1220.7,54.00959]
[1610214354734,4.00959,1221.3,1220.7,4.00959]
[1610214354934,4.00959,1221.3,1220.8,50.0]
[1610214355135,4.00959,1221.3,1220.9,50.0]
[1610214355635,4.00959,1221.3,1220.8,50.0]
[1610214356035,4.00959,1221.3,1221.0,50.0]
[1610214356235,4.00959,1221.3,1220.7,50.0]
[1610214356635,4.00959,1220.8,1220.7,50.0]
[1610214357035,4.00959,1220.8,1220.5,7.41459]
[1610214357235,4.00959,1220.8,1220.5,4.00959]
[1610214357435,4.00959,1220.8,1220.7,50.0]
[1610214359440,4.00959,1220.8,1220.6,50.0]
[1610214359639,62.3027,1220.7,1220.6,50.0]
[1610214359838,64.3734,1220.7,1220.5,50.0]
[1610214360040,64.3734,1220.7,1220.3,50.0]
[1610214360439,64.3734,1220.7,1219.8,50.0]
[1610214360640,4.00959,1219.9,1219.8,50.0]
[1610214366949,2.4234,1220.0,1219.8,50.0]
[1610214367552,1.7158,1220.3,1219.8,50.0]
[1610214367754,2.0707,1220.7,1219.8,50.0]
[1610214367953,60.5697,1221.0,1219.8,50.0]
[1610214368152,8.2788,1221.0,1219.8,50.0]
[1610214368354,8.2788,1221.0,1219.9,61.8193]
[1610214368653,4.00959,1220.6,1220.3,4.00959]
[1610214368854,5.96209,1220.6,1220.3,4.00959]
[1610214369455,5.96209,1220.6,1220.4,50.0]
[1610214369654,5.96209,1220.6,1220.5,50.0]
[1610214370054,5.96209,1220.6,1220.4,50.0]
[1610214370255,5.96209,1220.6,1220.3,4.00959]
[1610214370455,5.96209,1220.6,1220.5,50.0]
[1610214370654,5.96209,1220.6,1220.4,50.0]
[1610214371254,5.96209,1220.6,1220.5,50.0]
[1610214371556,5.96209,1220.6,1220.4,50.0]
[1610214371956,5.96209,1220.6,1220.5,50.0]
[1610214377862,5.96209,1220.6,1220.4,50.0]
[1610214378261,35.96209,1220.6,1220.1,50.0]
[1610214378663,35.96209,1220.6,1219.9,97.6048]
[1610214378862,4.00959,1220.2,1219.9,50.0]
[1610214379264,4.00959,1220.2,1219.8,50.0]
[1610214379663,4.00959,1220.2,1219.9,50.0]
[1610214379863,4.00959,1220.2,1219.8,50.0]
[1610214380464,4.00959,1220.2,1219.6,50.0]
[1610214380766,4.00959,1219.7,1219.6,50.0]
[1610214380965,4.00959,1219.7,1219.4,50.6219]
[1610214381265,4.00959,1219.7,1219.5,50.0]
[1610214381865,1.758,1220.3,1219.6,50.0]
[1610214382265,1.758,1220.3,1219.7,50.0]
[1610214382667,1.758,1220.3,1219.8,50.0]
[1610214383067,1.758,1220.3,1219.9,50.0]
[1610214383466,1.758,1220.3,1219.7,4.00959]
[1610214383667,1.758,1220.3,1219.8,50.0]
[1610214384067,87.7907,1220.6,1220.0,50.0]
[1610214384467,87.7907,1220.6,1220.1,50.0]
[1610214384668,87.7907,1220.6,1220.2,50.0]
[1610214384867,4.00959,1220.4,1220.2,50.0]
[1610214385069,4.00959,1220.4,1220.1,4.00959]
[1610214385270,4.00959,1220.4,1220.3,50.0]
[1610214385472,4.00959,1220.4,1220.2,50.0]
[1610214385671,4.00959,1220.4,1220.1,4.00959]
[1610214385870,4.00959,1220.4,1220.3,50.0]
[1610214386271,4.00959,1220.4,1220.2,50.0]
[1610214386671,4.00959,1220.4,1220.3,50.0]
[1610214386871,4.00959,1220.4,1220.2,50.0]
[1610214387273,4.00959,1220.4,1220.3,50.0]
[1610214387673,4.00959,1220.4,1220.2,50.0]
[1610214388174,4.00959,1220.4,1220.3,50.0]
[1610214391475,4.00959,1220.4,1220.2,50.0]
[1610214391878,4.00959,1220.4,1220.3,50.0]
[1610214392277,4.00959,1220.4,1220.2,50.0]
[1610214392477,4.00959,1220.4,1219.6,64.559]
[1610214392678,4.00959,1220.4,1219.9,50.0]
[1610214392878,4.00959,1220.0,1219.7,50.0]
[1610214393280,4.00959,1220.0,1219.8,50.0]
[1610214393677,4.00959,1220.0,1219.7,50.0]
[1610214393877,4.00959,1220.0,1219.8,50.0]
[1610214394178,4.00959,1220.0,1219.7,50.0]
[1610214394579,4.00959,1220.0,1219.8,50.0]
[1610214396884,4.00959,1220.0,1219.5,100.5543]
[1610214397286,4.00959,1220.0,1219.6,50.0]
[1610214397487,4.00959,1220.0,1219.5,50.5543]
[1610214397690,4.00959,1220.0,1219.7,50.0]
[1610214397893,4.00959,1220.0,1219.6,50.0]
[1610214398792,4.00959,1220.0,1219.8,50.0]
[1610214400697,4.00959,1220.0,1219.7,50.0]
[1610214400899,4.00959,1219.8,1219.7,50.0]
[1610214409817,4.00959,1219.8,1219.6,50.0]
[1610214410216,4.00959,1219.8,1219.7,50.0]
[1610214412120,4.00959,1219.8,1219.6,50.0]
[1610214412520,4.00959,1219.8,1219.7,50.0]
[1610214413020,4.00959,1219.8,1219.3,50.0]
[1610214413220,4.00959,1219.8,1219.2,1.6007]
[1610214413421,4.00959,1219.8,1219.4,50.0]
[1610214413820,4.00959,1219.8,1219.5,59.0881]
[1610214414020,4.00959,1219.8,1219.5,109.0881]
[1610214414421,4.00959,1219.8,1219.5,59.0881]
[1610214414820,4.00959,1219.8,1219.6,50.0]
[1610214415019,4.00959,1219.8,1219.7,50.0]
[1610214419224,4.00959,1219.8,1219.6,50.0]
[1610214420526,4.00959,1219.8,1219.3,50.0]
[1610214421128,4.00959,1219.4,1219.3,50.0]
[1610214421327,4.00959,1219.4,1219.2,65.0119]
[1610214422229,4.00959,1219.4,1219.3,1.2535144]
[1610214422431,4.00959,1219.4,1219.3,51.2535144]
[1610214422830,54.4281,1220.1,1219.3,51.2535144]
[1610214423030,1.6682,1220.2,1219.5,4.00959]
[1610214423429,38.0654,1220.6,1219.5,4.00959]
[1610214423830,38.0654,1220.6,1219.6,50.0]
[1610214424130,8.0654,1220.6,1219.7,50.0]
[1610214424430,8.0654,1220.6,1219.8,50.0]
[1610214424831,1.6825282,1220.5,1219.8,50.0]
[1610214425030,1.6825282,1220.5,1219.9,62.9956]
[1610214425232,1.6825282,1220.5,1220.0,50.0]
[1610214425629,1.6825282,1220.5,1220.1,50.0]
[1610214425831,1.6825282,1220.5,1220.1,58.1169]
[1610214426233,1.6825282,1220.5,1220.1,8.1169]
[1610214426633,1.6825282,1220.5,1220.2,50.0]
[1610214427035,4.00959,1220.3,1220.2,54.00959]
[1610214427234,4.00959,1220.3,1220.2,4.00959]
[1610214427435,4.00959,1220.3,1220.2,54.00959]
[1610214430739,5.66739,1220.3,1220.2,54.00959]
[1610214431140,5.66739,1220.3,1220.2,50.0]
[1610214432944,5.66739,1220.3,1220.1,58.1169]
[1610214433345,5.66739,1220.3,1220.2,50.0]
[1610214434945,5.66739,1220.3,1220.1,50.0]
[1610214435345,5.66739,1220.3,1219.7,58.896]
[1610214435745,5.66739,1220.3,1220.1,50.0]
[1610214436149,5.66739,1220.3,1219.8,50.0]
[1610214436550,5.66739,1220.3,1219.9,50.0]
[1610214436948,5.66739,1220.3,1219.8,50.0]
[1610214437148,4.00959,1219.9,1219.8,50.0]
[1610214437650,4.00959,1219.9,1219.7,108.896]
[1610214437950,4.00959,1219.9,1219.8,50.0]
[1610214443152,2.342,1220.0,1219.8,50.0]
[1610214443352,2.342,1220.0,1219.9,57.0574]
[1610214443553,4.00959,1220.1,1219.9,107.0574]
[1610214443853,4.00959,1220.1,1220.0,50.0]
[1610214447655,4.00959,1220.1,1219.9,50.0]
[1610214447855,4.00959,1220.1,1219.8,56.7076]
[1610214448257,4.00959,1220.1,1220.0,50.0]
[1610214448658,4.00959,1220.1,1219.9,50.0]
[1610214449061,4.00959,1220.1,1219.8,106.7076]
[1610214449260,4.00959,1219.9,1219.8,106.7076]
[1610214449459,4.00959,1219.9,1219.8,56.7076]
[1610214449858,4.00959,1219.9,1219.8,106.7076]
[1610214450259,4.00959,1219.9,1219.8,56.7076]
[1610214450560,4.00959,1219.9,1219.8,106.7076]
[1610214453166,2.4496,1220.0,1219.8,110.71719]
[1610214453566,2.4496,1220.0,1219.9,50.0]
[1610214454668,1.6578,1220.3,1220.0,66.6021]
[1610214454867,1.9525,1220.6,1220.0,116.6021]
[1610214455068,6.2308,1220.8,1220.0,116.6021]
[1610214455268,88.55923,1221.0,1220.3,4.00959]
[1610214455469,1.9522,1221.0,1220.5,8.2221]
[1610214455670,86.64530605,1221.1,1220.3,4.00959]
[1610214455870,86.64530605,1221.1,1220.7,63.2096]
[1610214456070,116.67787977,1221.2,1220.7,63.2096]
[1610214456270,1.68084411,1221.0,1220.7,63.2096]
[1610214456470,33.38274411,1221.0,1220.7,63.2096]
[1610214457071,33.38274411,1221.0,1220.4,50.0]
[1610214457271,4.00959,1220.5,1220.3,57.7408]
[1610214457471,6.05379,1220.5,1220.3,57.7408]
[1610214459774,6.05379,1220.5,1220.4,50.0]
[1610214460976,36.05379,1220.5,1220.4,50.0]
[1610214463176,37.73573132,1220.5,1220.4,50.0]
[1610214463576,37.73573132,1220.5,1220.3,57.7408]
[1610214463981,37.73573132,1220.5,1219.9,50.0]
[1610214464380,37.73573132,1220.5,1219.7,98.9097]
[1610214464582,36.05379,1220.5,1219.7,98.9097]
[1610214464780,36.05379,1220.5,1219.8,50.0]
[1610214465080,36.05379,1220.5,1219.9,50.0]
[1610214465280,32.0442,1220.5,1220.0,9.0834]
[1610214465982,1.68201473,1220.4,1220.0,9.0834]
[1610214467185,1.68201473,1220.4,1219.9,50.0]
[1610214467383,4.00959,1220.1,1219.9,50.0]
[1610214467583,4.00959,1220.1,1220.0,55.6539]
[1610214468584,4.00959,1220.1,1219.8,50.0]
[1610214468786,4.00959,1220.1,1219.9,50.0]
[1610214469586,4.00959,1220.1,1219.8,98.4072]
[1610214469985,6.42969,1220.1,1219.9,50.0]